Cogmind - Beta 12 @@@ ROGUE MODE // 2024.02.12 @ 21:47:40 Player: puppuppit Result: Destroyed by S-27 Virus with Autogun Performance ------------- Evolutions (3) 1500 Regions Visited (12) 2400 Robots Destroyed (158) 790 Value Destroyed (6812) 6812 Prototype IDs (41) 820 Alien Tech Used (0) 0 Bonus (2012) 2012 TOTAL SCORE: 14334 Bonus ------- High Alert Combat Kills 1520 Follower Combat Kills 346 Entered Garrisons 400 Aligned with FarCom 300 Friendly Fire -554 Cogmind --------- Core Integrity 0/700 Matter 292/300 Energy 59/100 System Corruption 2% Temperature Cool (0) Movement Flying (34) Location -7/Lower Caves Parts ------- > --- POWER (1) -------- (None) > --- PROPULSION (4) --- VTOL Module Xenon Bombardment Thruster > --- UTILITY (6) ------ Hacking Suite Hacking Suite System Shield > --- WEAPON (2) ------- Cooled Pulse Rifle > --- INVENTORY (5) ---- Faulty Enhanced Nuclear Core Launcher Loader Latent Energy Streamer Peak State ------------ > --- POWER ------------ Enhanced Nuclear Core > --- PROPULSION ------- Improved Hover Unit Airjet Airjet Gravmag System > --- UTILITY ---------- Improved Salvage Targeting Computer Target Analyzer Transmission Jammer Hacking Suite Hacking Suite System Shield > --- WEAPON ----------- Precision Shock Rifle Precision Shock Rifle > --- INVENTORY -------- Enhanced Nuclear Core Improved Utility Shielding System Shield System Shield Latent Energy Streamer [Rating: 49] Favorites ----------- Power Light Ion Engine Engine Light Ion Engine Power Core Enhanced Nuclear Core Propulsion Aluminum Leg Leg Aluminum Leg Wheel Wheel Hover Unit Airjet Flight Unit Improved Flight Unit Utility Hacking Suite Device Transmission Jammer Storage Small Storage Unit Processor Improved Salvage Targeting Computer Hackware Hacking Suite Protection Propulsion Shielding Weapon Enhanced Autogun Energy Gun Precision Shock Rifle Energy Cannon Improved EM Pulse Cannon Ballistic Gun Enhanced Autogun Ballistic Cannon Advanced Assault Cannon Launcher Rocket Launcher Build | -11 -10 -10 -9 -9 -9 -8 -8 -8 -7 -7 -7 -7 ------- Run | Jun Mat Min Mat Min Exi Min Mat Gar Fac Gar Fac Low Slots Evolved 6 | . . . 2 . . . 2 . 2 . . . Power . | . . . . . . . . . . . . . Propulsion 2 | . . . 1 . . . 1 . . . . . Utility 4 | . . . 1 . . . 1 . 2 . . . Weapon . | . . . . . . . . . . . . . Parts Attached 235 | 9 23 8 19 3 1 1 25 24 33 51 37 1 Power 36 | 2 7 2 1 1 . . 2 5 3 11 2 . Engine 23 | 2 7 2 1 1 . . 2 1 2 4 1 . Core 13 | . . . . . . . . 4 1 7 1 . Reactor . | . . . . . . . . . . . . . Propulsion 77 | 2 7 1 7 . . . 12 9 11 21 7 . Treads . | . . . . . . . . . . . . . Leg 7 | . . . . . . . . . . 7 . . Wheel 2 | 2 . . . . . . . . . . . . Hover 28 | . 7 1 1 . . . 6 . 4 5 4 . Flight 40 | . . . 6 . . . 6 9 7 9 3 . Utility 50 | 2 3 . 3 2 1 1 2 2 11 5 18 . Device 21 | 1 . . 2 1 . . . . 7 1 9 . Storage 3 | 1 1 . . . 1 . . . . . . . Processor 8 | . 2 . . 1 . . 1 1 . . 3 . Hackware 11 | . . . . . . 1 . . 3 2 5 . Protection 7 | . . . 1 . . . 1 1 1 2 1 . Artifact . | . . . . . . . . . . . . . Weapon 72 | 3 6 5 8 . . . 9 8 8 14 10 1 Energy Gun 6 | . . . . . . . . . . . 6 . Energy Cannon 9 | . . . . . . . . . 1 7 1 . Ballistic Gun 43 | 3 6 3 5 . . . 5 8 7 6 . . Ballistic Cannon 2 | . . . . . . . . . . 1 1 . Launcher 12 | . . 2 3 . . . 4 . . . 2 1 Special Weapon . | . . . . . . . . . . . . . Impact Weapon . | . . . . . . . . . . . . . Slashing Weapon . | . . . . . . . . . . . . . Piercing Weapon . | . . . . . . . . . . . . . Special Melee Weapon . | . . . . . . . . . . . . . Unidentified Prototypes 10 | . . . 2 . . . 1 . 3 . 4 . Corrupted Parts 1 | . . . . . . . . . . . 1 . System Corruption 1 | . . . . . . . . . . . 1 . Parts Lost 49 | . 2 1 3 . . . 8 4 3 13 12 3 Power 5 | . 1 . . . . . 1 . . 1 2 . Propulsion 27 | . 1 1 2 . . . 5 1 1 8 8 . Utility 6 | . . . . . . . . . 1 2 1 2 Weapon 11 | . . . 1 . . . 2 3 1 2 1 1 Highest Loss Streak 7 | . 2 1 2 . . . 3 3 2 7 4 6 To Critical Strikes . | . . . . . . . . . . . . . Average Slot Usage (%) 93 | . 99 99 70 99 100 99 97 99 89 93 89 56 Engine 5 | . 14 14 7 11 11 11 8 2 2 3 . . Core 3 | . . . . . . . . 6 4 2 6 . Leg 5 | . . . . . . . . . . 14 12 . Hover 8 | . 25 27 9 . . . 12 . 7 4 7 . Flight 13 | . . . 12 33 33 33 21 35 19 8 4 15 Device 3 | . . . 1 10 11 3 . . 10 3 4 4 Storage 6 | . 14 14 11 11 11 11 9 9 7 5 . . Processor 11 | . 13 14 11 11 11 11 17 17 7 7 10 . Hackware 14 | . . . . . . 7 9 9 9 25 27 27 Protection 1 | . . . . . . . . . 5 1 . . Energy Gun 2 | . . . . . . . . . . . 10 7 Energy Cannon 1 | . . . . . . . . . . 5 1 . Ballistic Gun 11 | . 27 26 14 22 22 22 11 17 11 6 . . Naked Turns . | . . . . . . . . . . . . . Heaviest Build 38 | 14 13 13 15 15 15 15 16 18 19 38 28 5 Greatest Support 40 | 20 20 12 18 15 15 15 32 20 26 40 40 10 Greatest Overweight (x) 5 | . 1 1 1 . . . 1 1 5 5 2 . Average Overweight (x) . | . . . . . . . . . . . . . Largest Inventory Capacity 8 | 8 8 8 8 8 8 8 8 8 8 8 5 5 Average Capacity 7 | 7 8 8 8 8 8 8 8 8 8 7 5 5 Most Carried 8 | 4 8 8 8 8 8 8 8 8 8 8 5 5 Average Carried 6 | 1 7 7 7 7 8 7 7 7 7 7 4 4 Final Capacity 8 | 8 8 8 8 8 8 8 8 8 8 5 5 5 Final Carried 8 | 4 8 8 8 8 8 8 8 8 7 5 5 4 Class Distribution -------------------- 30% | Mutant 30% | Hacker-Mutant 12% | Scavenger-Sprinter 10% | Sprinter 8% | Commander-Mutant 4% | Hacker-Sprinter Dominant Class ---------------- Mutant | -10/Materials Mutant | -10/Mines Scavenger-Mutant | -9/Materials Mutant | -9/Mines Mutant | -9/Exiles Mutant | -8/Mines Mutant | -8/Materials Sprinter | -8/Garrison Scavenger-Sprinter | -7/Factory Hacker-Mutant | -7/Garrison Hacker-Mutant | -7/Factory Hacker-Mutant | -7/Lower Caves Resources | -11 -10 -10 -9 -9 -9 -8 -8 -8 -7 -7 -7 -7 ----------- Run | Jun Mat Min Mat Min Exi Min Mat Gar Fac Gar Fac Low Matter Collected 7084 | 220 956 209 124 332 482 10 1145 1131 678 1168 629 . Remotely . | . . . . . . . . . . . . . Salvage Created 6144 | 167 787 212 130 104 . . 1223 876 538 1322 752 33 Parts 368 | 14 49 16 10 5 . . 69 66 26 69 42 2 Haulers Intercepted 12 | . 2 . 1 . . . 5 . 3 . 1 . Recyclers Shooed 14 | . 8 . 1 . . . 2 . 2 . 1 . Parts Field Recycled . | . . . . . . . . . . . . . Retrieved Matter . | . . . . . . . . . . . . . Parts Self-Destructed . | . . . . . . . . . . . . . Prevented . | . . . . . . . . . . . . . Kills | -11 -10 -10 -9 -9 -9 -8 -8 -8 -7 -7 -7 -7 ------- Run | Jun Mat Min Mat Min Exi Min Mat Gar Fac Gar Fac Low Combat Hostiles Destroyed 102 | . 7 5 8 3 . . 18 19 3 27 10 2 Guns 59 | . 7 . 1 3 . . 5 19 3 18 2 1 Cannons 7 | . . . . . . . . . . 5 2 . AOE 32 | . . 5 7 . . . 13 . . 2 4 1 Classes Destroyed 15 | 2 6 . . . . . 3 3 . 1 . . Worker 4 | . 2 . . . . . 1 . . . 1 . Builder 4 | . . . . . . . 2 . . . 2 . Tunneler 7 | 4 1 2 . . . . . . . . . . Hauler 12 | . 2 . 1 . . . 5 . 3 . 1 . Recycler 16 | 1 4 1 . . . . 5 . 3 . 2 . Operator 5 | . 1 . . . . . 2 . 1 . 1 . Watcher 6 | . 3 . . . . . 1 1 1 . . . Swarmer 27 | . 3 3 4 1 . . . 3 . 7 4 2 Cutter 3 | . . . . . . . . 3 . . . . Grunt 54 | . 4 2 4 2 . . 14 5 2 17 4 . Duelist 1 | . . . . . . . . . . 1 . . Sentry 13 | . . . . . . . 3 6 . 2 2 . Specialist 1 | . . . . . . . . 1 . . . . Hunter 2 | . . . . . . . 1 . . . 1 . Programmer 3 | . . . . . . . . 1 1 . 1 . Best Kill Streak 7 | 5 5 4 4 2 . . 7 3 4 4 4 2 Combat Bots Only 5 | . 4 3 4 2 . . 5 3 2 4 4 2 Max Kills in Single Turn 4 | 1 1 2 2 1 . . 4 1 1 1 2 1 Gunslinging . | . . . . . . . . . . . . . Exploded 3 | . . 2 2 . . . 3 . . 1 2 1 Melee . | . . . . . . . . . . . . . Uniques/NPCs Destroyed . | . . . . . . . . . . . . . Combat | -11 -10 -10 -9 -9 -9 -8 -8 -8 -7 -7 -7 -7 -------- Run | Jun Mat Min Mat Min Exi Min Mat Gar Fac Gar Fac Low Damage Taken 5890 | . 439 279 211 58 . 19 732 959 499 1596 1010 88 Core 1431 | . 144 53 81 29 . 19 168 229 88 336 229 55 Absorbed by Shields 232 | . . . . . . . . 113 . 119 . . Redirected to Shielding 65 | . . . . . . . . 19 . 46 . . Core Remaining (%) 53 | 100 . 21 . . . 67 . 27 . . . . Volleys Fired 528 | 8 73 20 22 11 . . 63 96 32 141 60 2 Largest 2 | 2 2 2 2 2 . . 2 2 2 2 2 2 Hottest 138 | 40 40 50 50 50 . . 58 50 56 129 138 56 Shots Fired 911 | 16 146 40 37 22 . . 119 183 53 186 106 3 Gun 796 | 16 146 36 27 22 . . 72 183 53 156 83 2 Cannon 39 | . . . . . . . . . . 30 9 . Launcher 76 | . . 4 10 . . . 47 . . . 14 1 Special . | . . . . . . . . . . . . . Kinetic 713 | 16 146 36 27 22 . . 72 183 53 156 2 . Thermal 17 | . . . . . . . . . . . 15 2 Explosive 76 | . . 4 10 . . . 47 . . . 14 1 Electromagnetic 105 | . . . . . . . . . . 30 75 . Robot Hit Streak 24 | 5 16 5 11 5 . . 6 12 13 9 24 2 Robot Miss Streak 8 | 1 6 3 1 4 . . 5 4 3 8 3 . Penetration Max 1 | . . . . . . . . . . 1 . . Secondary Targets 5 | . 1 . . . . . . 3 . 1 . . Max Gunslinging Chain 1 | . 1 . . . . . . 1 . 1 . . Shots Hit Robots 519 | 8 100 20 27 11 . . 69 82 36 87 78 1 Core Hits 287 | 6 32 12 18 4 . . 66 37 18 65 26 3 Critical Kills 1 | . . 1 . . . . . . . . . . Critical Parts Destroyed 3 | . . . . . . . . 1 . 2 . . Critical Strikes 6 | . . 1 . . . . . 1 . 2 2 . Destroy 4 | . . 1 . . . . . 1 . 2 . . Corrupt 2 | . . . . . . . . . . . 2 . Melee Attacks . | . . . . . . . . . . . . . Impact . | . . . . . . . . . . . . . Slashing . | . . . . . . . . . . . . . Piercing . | . . . . . . . . . . . . . Sneak Attacks . | . . . . . . . . . . . . . Combat Hostiles . | . . . . . . . . . . . . . Follow-up Attacks . | . . . . . . . . . . . . . Damage Inflicted 12866 | 96 1325 495 805 216 . . 3144 1485 692 2088 2395 125 Guns 7358 | 96 1285 229 184 216 . . 765 1485 692 1279 1105 22 Cannons 650 | . . . . . . . . . . 488 162 . Explosions 4858 | . 40 266 621 . . . 2379 . . 321 1128 103 Melee . | . . . . . . . . . . . . . Ramming . | . . . . . . . . . . . . . Kinetic 6301 | 96 1285 229 184 216 . . 765 1485 692 1279 70 . Thermal 651 | . 40 . . . . . . . . 99 490 22 Explosive 4058 | . . 266 621 . . . 2204 . . . 864 103 Electromagnetic 1856 | . . . . . . . 175 . . 710 971 . Impact . | . . . . . . . . . . . . . Slashing . | . . . . . . . . . . . . . Piercing . | . . . . . . . . . . . . . Highest Corruption 6 | . . . . . . . . . 3 6 6 2 Average Corruption 3 | . . . . . . . . . 2 3 3 2 Corruption Purged 10 | . . . . . . . . . . . 10 . Corruption Blocked . | . . . . . . . . . . . . . Effects 84 | . . . . . . . . . 8 41 35 . Message Errors 21 | . . . . . . . . . 3 7 11 . Matter Fused 24 | . . . . . . . . . 2 12 10 . Heat Flow Errors 7 | . . . . . . . . . . 4 3 . Energy Discharges 13 | . . . . . . . . . . 9 4 . Parts Rejected 1 | . . . . . . . . . . 1 . . Parts Fused 1 | . . . . . . . . . 1 . . . Data Loss (minor) 8 | . . . . . . . . . . 5 3 . Data Loss (major) 2 | . . . . . . . . . 1 1 . . Misfires 3 | . . . . . . . . . . 1 2 . Alerts 4 | . . . . . . . . . 1 1 2 . Overload Shots . | . . . . . . . . . . . . . Overflow Damage 263 | . . . 30 . . . 56 . . . 136 41 Projectiles . | . . . . . . . . . . . . . Explosions 263 | . . . 30 . . . 56 . . . 136 41 Melee . | . . . . . . . . . . . . . Knockbacks . | . . . . . . . . . . . . . Impact . | . . . . . . . . . . . . . Kinetic . | . . . . . . . . . . . . . Secondary . | . . . . . . . . . . . . . Self-Inflicted Damage 412 | . 116 36 . . . . 109 . . . 137 14 Shots 14 | . 2 2 . . . . 6 . . . 3 1 Rammed 1 | . . . . . . . . . . . 1 . Targets Rammed 1 | . . . . . . . . . . . 1 . Kicked . | . . . . . . . . . . . . . Crushed . | . . . . . . . . . . . . . Highest Temperature 336 | . 7 30 266 68 . . 53 85 26 181 336 . Average Temperature 46 | . 3 12 42 23 . . 16 20 7 44 102 . Received Heat Transfer 1772 | . 117 141 69 18 . 9 324 171 153 668 102 . Effects 2 | . . . . . . . . . . . 2 . Energy Bleed 1 | . . . . . . . . . . . 1 . Damage (minor) 1 | . . . . . . . . . . . 1 . Siege Activations . | . . . . . . . . . . . . . Robots Corrupted 4 | . . . . . . . . . . 2 2 . Combat Hostiles 4 | . . . . . . . . . . 2 2 . Parts Fried 9 | . . . . . . . . . . 3 6 . Impact Corruptions . | . . . . . . . . . . . . . Robots Melted . | . . . . . . . . . . . . . Combat Hostiles . | . . . . . . . . . . . . . Parts Melted . | . . . . . . . . . . . . . Heat Transferred 872 | . 50 . . . . . . . . 100 685 37 Parts Sabotaged . | . . . . . . . . . . . . . Parts Stolen . | . . . . . . . . . . . . . Parts Stripped . | . . . . . . . . . . . . . Power Chain Reactions 4 | . . . . . . . 1 . . 2 1 . Missiles Intercepted . | . . . . . . . . . . . . . Latent Energy Used 150 | . . . . . . . . . . 150 . . LE Corruption 3 | . . . . . . . . . . 3 . . Alert | -11 -10 -10 -9 -9 -9 -8 -8 -8 -7 -7 -7 -7 ------- Run | Jun Mat Min Mat Min Exi Min Mat Gar Fac Gar Fac Low Peak Influence 1730 | 25 264 255 332 300 . 45 850 1464 881 1730 1263 . Initial 907 | . 16 49 21 129 . . 17 552 763 553 907 . Average 733 | 8 57 106 143 243 . 39 422 960 771 1192 924 . Maximum Alert Level 5 | . 1 1 1 1 . . 3 4 3 5 4 . Low Security (%) 22 | 100 95 89 76 27 . 100 20 . . . . . Level 1 4 | . 4 10 23 72 . . 12 . . . . . Level 2 12 | . . . . . . . 57 22 20 6 6 . Level 3 42 | . . . . . . . 9 51 79 40 75 . Level 4 14 | . . . . . . . . 25 . 30 17 . Level 5 4 | . . . . . . . . . . 21 . . High Security . | . . . . . . . . . . . . . Max Security . | . . . . . . . . . . . . . Squads Dispatched 24 | . . . . . . . 5 . 10 . 9 . Investigation 6 | . . . . . . . 1 . 3 . 2 . Extermination 4 | . . . . . . . . . 1 . 3 . Reinforcement 7 | . . . . . . . 4 . 2 . 1 . Assault 4 | . . . . . . . . . 1 . 3 . Garrison 3 | . . . . . . . . . 3 . . . Intercept . | . . . . . . . . . . . . . Searches Triggered . | . . . . . . . . . . . . . Construction Impeded 2 | . . . . . . . 2 . . . . . Haulers Reinforced 2 | . . . . . . . . . 1 . 1 . Active Scanning Responses . | . . . . . . . . . . . . . Cargo Convoy Interrupts 1 | . . . . . . . . . . . 1 . Stealth | -11 -10 -10 -9 -9 -9 -8 -8 -8 -7 -7 -7 -7 --------- Run | Jun Mat Min Mat Min Exi Min Mat Gar Fac Gar Fac Low Distress Signals 8 | . . . 1 . . . 5 1 . . 1 . Communications Jammed 8 | . . . . . . . . . 6 . 2 . Distress Signals 7 | . . . . . . . . . 6 . 1 . Times Spotted 236 | . 18 7 19 7 . 4 27 25 36 32 55 6 Peak Tracking Total 13 | . 6 3 11 4 . 3 6 3 9 5 13 6 Tactical Retreats 29 | . 2 1 1 . . 2 3 3 7 3 7 . Traps | -11 -10 -10 -9 -9 -9 -8 -8 -8 -7 -7 -7 -7 ------- Run | Jun Mat Min Mat Min Exi Min Mat Gar Fac Gar Fac Low Traps Triggered 25 | . 2 . . . . . 1 9 5 8 . . Indirectly . | . . . . . . . . . . . . . Trap Hack Attempts . | . . . . . . . . . . . . . Triggered . | . . . . . . . . . . . . . Disarmed . | . . . . . . . . . . . . . Reprogrammed . | . . . . . . . . . . . . . Reused . | . . . . . . . . . . . . . Traps Extracted . | . . . . . . . . . . . . . Installed . | . . . . . . . . . . . . . Triggered . | . . . . . . . . . . . . . Machines | -11 -10 -10 -9 -9 -9 -8 -8 -8 -7 -7 -7 -7 ---------- Run | Jun Mat Min Mat Min Exi Min Mat Gar Fac Gar Fac Low Machines Disabled 43 | . 3 . . 1 . . 9 8 . 11 11 . Max in Single Turn 4 | . 3 . . 1 . . 2 1 . 2 4 . Garrison Access 1 | . . . . . . . . . . . 1 . Garrison Relay 10 | . . . . . . . . 7 . 3 . . Phase Generator 1 | . . . . . . . . . . 1 . . Machines Repaired . | . . . . . . . . . . . . . Machines Sabotaged . | . . . . . . . . . . . . . Overloaded Fab Kills . | . . . . . . . . . . . . . Hacking | -11 -10 -10 -9 -9 -9 -8 -8 -8 -7 -7 -7 -7 --------- Run | Jun Mat Min Mat Min Exi Min Mat Gar Fac Gar Fac Low Machines Accessed 51 | . 10 . 4 2 5 . 4 1 11 4 10 . Terminals 26 | . 8 . 3 . . . . 1 6 4 4 . Fabricators 5 | . . . . . . . . . 3 . 2 . Repair Stations 3 | . 1 . . . . . 1 . 1 . . . Recycling Units 4 | . 1 . 1 . . . . . . . 2 . Scanalyzers 2 | . . . . . . . 2 . . . . . Garrison Access 4 | . . . . . . . 1 . 1 . 2 . Total Hacks 201 | . 26 . 15 2 50 . 19 3 43 6 37 . Successful 123 | . 9 . 9 2 50 . 15 2 13 4 19 . Failed 76 | . 16 . 6 . . . 4 1 29 2 18 . Catastrophic 16 | . 3 . 1 . . . . . 6 1 5 . Database Lockouts 2 | . 1 . . . . . . . 1 . . . Manual 41 | . 8 . 6 . 1 . . . 17 . 9 . Terminals 92 | . 21 . 13 . . . . 3 32 6 17 . Fabricators 17 | . . . . . . . . . 7 . 10 . Repair Stations 7 | . 3 . . . . . 2 . 2 . . . Recycling Units 11 | . 2 . 2 . . . . . . . 7 . Scanalyzers 15 | . . . . . . . 15 . . . . . Garrison Access 7 | . . . . . . . 2 . 2 . 3 . Terminal Hacks 89 | . 7 . 9 2 50 . . 2 9 4 6 . Record 49 | . . . . . 49 . . . . . . . Robot Schematic 4 | . . . 2 . . . . . 2 . . . Robot Analysis 7 | . 1 . 2 . . . . . 1 . 3 . Prototype ID Bank 4 | . 1 . 2 . . . . . 1 . . . Open Door 2 | . . . . 2 . . . . . . . . Branch Access Points 2 | . . . 1 . . . . . . . 1 . Emergency Access Points 1 | . . . . . . . . . . 1 . . Terminal Index 3 | . . . 1 . . . . . 1 . 1 . Fabricator Index 1 | . . . . . . . . . 1 . . . Repair Station Index 1 | . . . . . . . . . . . 1 . Alert Level 2 | . 1 . . . . . . . 1 . . . Unreport Threat 3 | . 2 . . . . . . . 1 . . . Locate Traps 1 | . . . 1 . . . . . . . . . Zone Layout 3 | . 2 . . . . . . . 1 . . . Garrison Registry 1 | . . . . . . . . . . 1 . . Patrol Navigation 1 | . . . . . . . . . . 1 . . Security Stations 3 | . . . . . . . . 2 . 1 . . EX-Prototype ID Bank 1 | . . . . . 1 . . . . . . . Fabricator Hacks 11 | . . . . . . . . . 2 . 9 . Network Status 1 | . . . . . . . . . . . 1 . Load Schematic 6 | . . . . . . . . . 2 . 4 . Build 4 | . . . . . . . . . . . 4 . Repair Station Hacks 3 | . 1 . . . . . 1 . 1 . . . Scan Component 1 | . . . . . . . 1 . . . . . Refit 2 | . 1 . . . . . . . 1 . . . Recycling Unit Hacks 4 | . 1 . . . . . . . . . 3 . Report Inventory 1 | . . . . . . . . . . . 1 . Retrieve Components 3 | . 1 . . . . . . . . . 2 . Scanalyzer 13 | . . . . . . . 13 . . . . . Insert Component 7 | . . . . . . . 7 . . . . . Analyze 6 | . . . . . . . 6 . . . . . Garrison Access Hacks 3 | . . . . . . . 1 . 1 . 1 . Unlock Access 2 | . . . . . . . 1 . 1 . . . Seal Access 1 | . . . . . . . . . . . 1 . Unauthorized Hacks . | . . . . . . . . . . . . . Terminals . | . . . . . . . . . . . . . Fabricators . | . . . . . . . . . . . . . Repair Stations . | . . . . . . . . . . . . . Recycling Units . | . . . . . . . . . . . . . Scanalyzers . | . . . . . . . . . . . . . Garrison Access . | . . . . . . . . . . . . . Data Cores Recovered 3 | . . . . . . . 1 . 1 . 1 . Used . | . . . . . . . . . . . . . Hacking Detections 34 | . 9 . 4 . . . 3 1 11 1 5 . Full Trace Events 6 | . 1 . . . . . . . 3 . 2 . Feedback Events 1 | . . . . . . . . . . . 1 . Hackware Fried 1 | . . . . . . . . . . . 1 . Feedback Blocked . | . . . . . . . . . . . . . Robot Schematics Acquired 4 | . . . 2 . . . . . 2 . . . Robots Built 14 | . . . . . . . . . . . 14 . Authchips 4 | . . . . . . . . . . . 4 . Time 196 | . . . . . . . . . . . 196 . Total Robot Build Rating 26 | . . . . . . . . . . . 26 . Part Schematics Acquired 6 | . . . . . . . 6 . . . . . Parts Built . | . . . . . . . . . . . . . Authchips . | . . . . . . . . . . . . . Time . | . . . . . . . . . . . . . Total Part Build Rating . | . . . . . . . . . . . . . Parts Repaired . | . . . . . . . . . . . . . Time . | . . . . . . . . . . . . . Parts Recycled . | . . . . . . . . . . . . . Recycled Matter . | . . . . . . . . . . . . . Retrieved Matter . | . . . . . . . . . . . . . Retrieved Components 16 | . 3 . . . . . . . . . 13 . Parts Scanalyzed 6 | . . . . . . . 6 . . . . . Part Schematics Acquired 6 | . . . . . . . 6 . . . . . Parts Damaged 1 | . . . . . . . 1 . . . . . Bothacking | -11 -10 -10 -9 -9 -9 -8 -8 -8 -7 -7 -7 -7 ------------ Run | Jun Mat Min Mat Min Exi Min Mat Gar Fac Gar Fac Low Used RIF Installer . | . . . . . . . . . . . . . Robots Hacked . | . . . . . . . . . . . . . Non-combat . | . . . . . . . . . . . . . Combat . | . . . . . . . . . . . . . Robot Hacks Applied . | . . . . . . . . . . . . . Relay Couplers Released 38 | . . . . . . . . 24 . 14 . . Machine Destruction 38 | . . . . . . . . 24 . 14 . . Fabnet Peak Effective % . | . . . . . . . . . . . . . Robots Rewired 6 | . . . . . . . . 6 . . . . Allies Hacked 3 | . . . . . . . . . . . 3 . Hacks Repelled . | . . . . . . . . . . . . . Allies | -11 -10 -10 -9 -9 -9 -8 -8 -8 -7 -7 -7 -7 -------- Run | Jun Mat Min Mat Min Exi Min Mat Gar Fac Gar Fac Low Total Allies 23 | . . . . 3 . . . 6 . . 14 . Largest Group 14 | . . . . 3 3 . . 6 . . 14 . Highest-Rated Group 136 | . . . . 72 72 . . 84 . . 136 . Highest-Rated Ally 31 | . . . . 31 31 . . 14 . . 16 . Total Orders . | . . . . . . . . . . . . . Ally Attacks 174 | . . . . 8 . . . 6 . . 160 . Total Damage 1388 | . . . . 124 . . . . . . 1264 . Kills 17 | . . . . 3 . . . . . . 14 . Allies Corrupted . | . . . . . . . . . . . . . Allies Melted . | . . . . . . . . . . . . . Intel | -11 -10 -10 -9 -9 -9 -8 -8 -8 -7 -7 -7 -7 ------- Run | Jun Mat Min Mat Min Exi Min Mat Gar Fac Gar Fac Low Robot Analysis Total 7 | . 1 . 2 . . . . . 1 . 3 . Derelict Logs Recovered 2 | . . 1 . 1 . . . . . . . . Drone Launches . | . . . . . . . . . . . . . Drone Recoveries . | . . . . . . . . . . . . . Exploration | -11 -10 -10 -9 -9 -9 -8 -8 -8 -7 -7 -7 -7 ------------- Run | Jun Mat Min Mat Min Exi Min Mat Gar Fac Gar Fac Low Turns Passed 9389 | 86 999 400 182 230 201 319 643 1098 1024 2040 2142 25 Spaces Moved 11192 | 54 997 505 158 385 501 617 761 1589 1621 1865 2082 57 Core 13 | 3 . . . . . . . . . 10 . . Treads . | . . . . . . . . . . . . . Legs 1677 | . . . . . . . . . . 772 905 . Wheels 104 | 51 53 . . . . . . . . . . . Hover 3808 | . 944 505 78 . . . 275 . 814 610 582 . Flight 5590 | . . . 80 385 501 617 486 1589 807 473 595 57 Fastest Speed 26 | 50 66 56 34 34 34 34 28 26 26 26 30 34 Average Speed 53 | 78 67 63 51 34 34 34 39 27 36 76 76 34 Slowest Speed 355 | 80 160 116 120 34 34 34 116 102 235 355 200 34 Overloaded Moves . | . . . . . . . . . . . . . Propulsion Burnouts . | . . . . . . . . . . . . . Robots Hopped 51 | . . . 5 5 . 7 5 3 16 . 10 . Cave-ins Triggered . | . . . . . . . . . . . . . Exploration Rate (%) 59 | 3 91 99 25 74 90 93 60 72 30 87 36 11 Regions Visited 12 Branch Regions 5 Pre-discovered Areas 3 | . . 1 . 1 1 . . . . . . . Known Exits Taken 6 | . 1 1 1 . . . 1 . 1 . 1 . Unknown Exits Taken 4 | 1 . . . 1 1 1 . . . . . . Scrap Searched 4 | . . 1 . 1 . 2 . . . . . . Spaces Dug 2 | . . . . . . . . . . 2 . . Terrain Destroyed 587 | . 39 26 63 . . . 252 . . 100 94 13 Melee . | . . . . . . . . . . . . . Projectile 2 | . . . . . . . . . . 2 . . AOE 585 | . 39 26 63 . . . 252 . . 98 94 13 Terrain Rammed . | . . . . . . . . . . . . . Walls Destroyed . | . . . . . . . . . . . . . Machines Disabled . | . . . . . . . . . . . . . Actions | -11 -10 -10 -9 -9 -9 -8 -8 -8 -7 -7 -7 -7 --------- Run | Jun Mat Min Mat Min Exi Min Mat Gar Fac Gar Fac Low Total 13780 | 79 1184 542 223 467 537 719 1010 2135 2000 2307 2517 60 Wait 1298 | . 37 7 12 63 25 106 139 220 275 107 307 . Move 11083 | 53 996 504 149 374 500 602 751 1582 1589 1862 2064 57 Hop 46 | . . . 3 5 . 7 5 3 15 . 8 . Pick Up 119 | 6 24 . 6 4 5 1 13 15 13 18 14 . Fast Attach 107 | 6 7 1 6 2 . 1 6 9 18 30 21 . Attach 52 | 2 4 1 6 . . . 11 5 9 3 10 1 Detach 36 | 1 4 1 3 1 . . 4 3 8 3 8 . Swap 76 | 1 12 6 7 1 1 . 8 10 6 18 6 . Drop 172 | 2 27 2 9 6 6 2 10 21 29 39 19 . Fire 528 | 8 73 20 22 11 . . 63 96 32 141 60 2 Melee . | . . . . . . . . . . . . . Ram . | . . . . . . . . . . . . . Kick . | . . . . . . . . . . . . . Crush . | . . . . . . . . . . . . . Escape Stasis 204 | . . . . . . . . 118 . 86 . . Rewire 59 | . . . . . . . . 53 6 . . . Trap . | . . . . . . . . . . . . . Miscellaneous . | . . . . . . . . . . . . . Route ------- -11/Junkyard -10/Materials (discovered 4 exits: *Mat x3 / *Min) -10/Mines (discovered 2 exits: *Mat x2) -9/Materials -9/Mines (discovered 4 exits: *Mat x2 / *Exi / [*Zio]) -9/Exiles -8/Mines (discovered 2 exits: *Mat x2) -8/Materials (discovered 3 exits: *Fac x2 / Gar) -8/Garrison (discovered 3 exits: *Fac x3) -7/Factory (discovered 4 exits: *Sto x2 / *Low / Gar) -7/Garrison (discovered 3 exits: *Fac x3) -7/Factory (discovered 4 exits: Sto x2 / *Low x2) -7/Lower Caves History --------- Turn | Location | Event 8 | -11/Junkyard | Discovered new exit (range 15) 87 | -11/Junkyard | Entered Materials 246 | -10/Materials | Discovered new exit (range 12) 253 | -10/Materials | Identified exit to Materials 260 | -10/Materials | Central database locked down 328 | -10/Materials | Build established: Mutant 570 | -10/Materials | Discovered new exit (range 9) 575 | -10/Materials | Identified exit to Mines 595 | -10/Materials | Discovered exit to Materials (range 11) 739 | -10/Materials | Discovered exit to Materials (range 12) 945 | -10/Materials | Core integrity fell below 50% 1086 | -10/Materials | Entered Mines 1104 | -10/Mines | Met a Derelict bent on vengeance 1306 | -10/Mines | Learned location of Storage (-7) 1436 | -10/Mines | A weapon hastily lodged in a ceiling crevice suddenly fell to the ground 1469 | -10/Mines | Discovered exit to Materials (range 12) 1475 | -10/Mines | Discovered exit to Materials (range 9) 1486 | -10/Mines | Entered Materials 1486 | -9/Materials | Evolved 2 slots: Propulsion x1, Utility x1 1562 | -9/Materials | Identified exit to Mines 1668 | -9/Materials | Entered Mines 1669 | -9/Mines | A Derelict revealed a hidden shortcut to a safe place 1678 | -9/Mines | Found the Drone Emporium 1688 | -9/Mines | Received a Mining Laser from a helpful Derelict 1711 | -9/Mines | Discovered new exit (range 8) 1740 | -9/Mines | Discovered new exit (range 8) 1786 | -9/Mines | Learned location of Zion (-7) 1805 | -9/Mines | Met a Derelict who couldn't figure out how to use a Trap Extractor 1825 | -9/Mines | Deemed a non-threat by the Exiles lab entrance 1825 | -9/Mines | Discovered new exit (range 6) 1898 | -9/Mines | Entered Exiles 1898 | -9/Exiles | Accompanied by 3 allies 1928 | -9/Exiles | Led the pair of lost Derelicts to a safe place 1932 | -9/Exiles | Met 8R-AWN 1937 | -9/Exiles | Met EX-HEX 1960 | -9/Exiles | Met EX-DEC 1984 | -9/Exiles | Visited The Gauntlet 2024 | -9/Exiles | Met EX-BIN 2029 | -9/Exiles | Aligned with FarCom system 2029 | -9/Exiles | Given EX-Vault access code 2042 | -9/Exiles | Opened EX-Vault 2046 | -9/Exiles | Found Latent Energy Streamer 2054 | -9/Exiles | Warned to stay clear of 0b10 Research branches 2095 | -9/Exiles | Discovered new exit (range 11) 2099 | -9/Exiles | Left Exiles lab with Latent Energy Streamer 2099 | -9/Exiles | Entered Mines 2383 | -8/Mines | Discovered new exit (range 5) 2399 | -8/Mines | Discovered new exit (range 4) 2418 | -8/Mines | Entered Materials 2418 | -8/Materials | Evolved 2 slots: Propulsion x1, Utility x1 2737 | -8/Materials | Discovered new exit (range 14) 2849 | -8/Materials | Discovered new exit (range 9) 3061 | -8/Materials | Identified exit to Garrison 3061 | -8/Materials | Entered Garrison 3076 | -8/Garrison | Lost 3 parts (1p1n1w) 3098 | -8/Garrison | Triggered checkpoint 3127 | -8/Garrison | Build established: Sprinter 3189 | -8/Garrison | Discovered new exit (range 10) 3214 | -8/Garrison | Triggered checkpoint 3310 | -8/Garrison | Garrison Relay disabled 3460 | -8/Garrison | Discovered new exit (range 14) 3480 | -8/Garrison | Triggered checkpoint 3500 | -8/Garrison | Garrison Relay disabled 3526 | -8/Garrison | Triggered checkpoint 3722 | -8/Garrison | Core integrity fell below 50% 3774 | -8/Garrison | Lost 3 parts (1n2w) 3846 | -8/Garrison | Learned Factory security intel 3853 | -8/Garrison | Discovered new exit (range 9) 3864 | -8/Garrison | Triggered checkpoint 3902 | -8/Garrison | Garrison Relay disabled 3974 | -8/Garrison | Garrison Relay disabled 3977 | -8/Garrison | Garrison Relay disabled 3982 | -8/Garrison | Garrison Relay disabled 3985 | -8/Garrison | Garrison Relay disabled 4082 | -8/Garrison | Learned Factory security intel 4091 | -8/Garrison | Identified exit to Factory 4140 | -8/Garrison | Triggered checkpoint 4159 | -8/Garrison | Entered Factory 4159 | -7/Factory | Evolved 2 slots: Utility x2 4160 | -7/Factory | Identified exit to Storage 4206 | -7/Factory | Build established: Scavenger-Sprinter 4215 | -7/Factory | Identified exit to Garrison 4710 | -7/Factory | Garrison activated, responded to threat 4824 | -7/Factory | Discovered exit to Storage (range 12) 4843 | -7/Factory | Discovered new exit (range 7) 4959 | -7/Factory | First assault squad dispatched 4985 | -7/Factory | Central database locked down 5155 | -7/Factory | Build established: Hacker-Mutant 5183 | -7/Factory | Entered Garrison 5222 | -7/Garrison | Triggered checkpoint 5274 | -7/Garrison | Garrison Relay disabled 5524 | -7/Garrison | Triggered checkpoint 5706 | -7/Garrison | Discovered new exit (range 8) 5722 | -7/Garrison | Build established: Scavenger-Sprinter 5750 | -7/Garrison | Triggered checkpoint 5812 | -7/Garrison | Lost 7 parts (1p5n1u) 5981 | -7/Garrison | Discovered new exit (range 15) 5988 | -7/Garrison | Learned Factory security intel 6004 | -7/Garrison | Spotted B-75 Beast 6024 | -7/Garrison | Discovered new exit (range 32) 6024 | -7/Garrison | Discovered new exit (range 54) 6024 | -7/Garrison | Discovered new exit (range 50) 6054 | -7/Garrison | Triggered checkpoint 6062 | -7/Garrison | Build established: Hacker-Mutant 6156 | -7/Garrison | Phase Generator disabled 6179 | -7/Garrison | Garrison Relay disabled 6382 | -7/Garrison | Triggered checkpoint 6448 | -7/Garrison | Core integrity fell below 50% 6471 | -7/Garrison | Garrison Relay disabled 6512 | -7/Garrison | Triggered checkpoint 7003 | -7/Garrison | Attempted to access garrison exit controls, blocked by remote lockdown 7105 | -7/Garrison | Attempted to access garrison exit controls, blocked by remote lockdown 7200 | -7/Garrison | Triggered checkpoint 7223 | -7/Garrison | Entered Factory 7720 | -7/Factory | Fabricated S-10 Pest? 7767 | -7/Factory | Fabricated S-10 Pest? 7833 | -7/Factory | Fabricated G-47 Trooper? 7881 | -7/Factory | Fabricated G-47 Trooper? 8058 | -7/Factory | Build established: Commander-Mutant 8641 | -7/Factory | System Shield fried by hacking feedback 8702 | -7/Factory | Cargo convoy interrupted 8823 | -7/Factory | First assault squad dispatched 8872 | -7/Factory | Build established: Hacker-Mutant 8970 | -7/Factory | Core integrity fell below 20% 8974 | -7/Factory | Lost 4 parts (3n1w) 9023 | -7/Factory | Identified exit to Lower Caves 9084 | -7/Factory | Found Launcher Loader 9277 | -7/Factory | Build established: Hacker-Sprinter 9365 | -7/Factory | Entered Lower Caves 9390 | -7/Lower Caves | Destroyed by S-27 Virus with Autogun Last Messages --------------- 09355_ Gravmag System destroyed. 09356_ K-01 Serf collects debris. 09357_ Acquired 88 matter. 09358_ Slug penetrates Wall. 09360_ Enh. Nuclear Core destroyed. 09360_ Knocked back. 09362_ Penetrated by Slug. 09362_ Knocked back. 09364_ Penetrated by Slug. 09364_ VTOL Module destroyed. 09365_ Slammed into H-61 Shepherd. LOCATION=LOWER CAVES GOAL=ESCAPE 09386_ Destroyed VTOL Module. 09386_ S-27 Virus destroyed. 09386_ Transmission Jammer destroyed. 09386_ Destroyed Transmission Jammer. 09386_ Missile Launcher destroyed. 09388_ System Shield destroyed. 09389_ S-27 Virus destroyed. Map ----- +----------------------------------------------------+ | | | | | ?????????????????????????????????????????????????? | | ?????????????????????????????????????????????????? | | ?????????????????????????????????????????????????? | | ?????????????????????????????????????????????????? | | ?????????????????????????????????????????????????? | | ?????????????????????????????????????????????????? | | ?????????????????????????????????????????????????? | | ?????????????????????????????????????????????????? | | ?????????????????????????????????????????????????# | | ?????????????????????????????????????????????????# | | ?????????????????????????????????????????????????# | | ?????????????????????????????????????????????????# | | ?????????????????????????????????????????????????? | | ?????????????????????????????????????????????????# | | ????????????????????????????????????????????###??# | | ??????????????????????????????????#####????## #### | | ?????????????????????????????????## #????# | | ????????????????????????????????## #?????# | | ???????????????????????????????## #?????## | | ??????????????????????????????## ####### | | ?????????????????????????????## ## # | | ?????????????????????#??????## ## | | ???????????????????### ##### ######? | | ???????????????????# @ ##?????? | | ??????????????????# ##??????# | | ??????????????????## ###### ##??????# | | ????????????????? %[ ?????# ##??????# | | ??????????????? s % ??????# ##??????# | | ??????????????## ???????# ##??????# | | ???????????????# #????????# #?????? | | ???????????????# ????????# ## #?????# ? | | ??????????????# ?????????# ### ##?????# ##?? | | ??????????????# ??????????# ??# #??????# ????? | | ??????????????# ???????????# ??# #??????#?????? | | ??????????????##????????????# ??# ????????????? | | ????????????????????????????# ??#### ???????????? | | ????????????????????????????# ??????????????????? | | ????????????????????????????? ??????????????????? | | ?????????????????????????????????????????????????? | | ?????????????????????????????????????????????????? | | ?????????????????????????????????????????????????? | | ?????????????????????????????????????????????????? | | ?????????????????????????????????????????????????? | | ?????????????????????????????????????????????????? | | ?????????????????????????????????????????????????? | | ?????????????????????????????????????????????????? | | ?????????????????????????????????????????????????? | | ?????????????????????????????????????????????????? | +----------------------------------------------------+ Best States ------------- Heat Dissipation 34 Energy Generation 17 Energy Capacity 300 Matter Stores 300 Matter Capacity 300 Sight Range 18 Terrain Scan Range 16 Terrain Scan Density 10 Jamming Range 12 Additional Mass Support 6 Core Shielding 20 Propulsion Shielding 33 Utility Shielding 66 Evasion (%) 72 Targeting Accuracy 5 Target Analysis 7 Armor Integrity Analysis 30 Recoil Reduction 4 Salvage Targeting 2 Offensive Hacking 20 Defensive Hacking 20 Authchip Count 5 Item Schematics ----------------- Enh. Autogun | -8/Materials | Scanalyzed Imp. Utility Shielding | -8/Materials | Scanalyzed Imp. Flight Unit | -8/Materials | Scanalyzed Cooling System | -8/Materials | Scanalyzed Lgt. Ion Engine | -8/Materials | Scanalyzed Cesium-ion Thruster | -8/Materials | Scanalyzed Robot Schematics ------------------ O-16 Technician | -9/Materials | Hacked S-10 Pest | -9/Materials | Hacked G-47 Trooper | -7/Factory | Hacked B-48 Gladiator | -7/Factory | Hacked Fabricated ------------ S-10 Pest | x4 | -7/Factory | Authchip S-10 Pest | x4 | -7/Factory | Authchip G-47 Trooper | x3 | -7/Factory | Authchip G-47 Trooper | x3 | -7/Factory | Authchip Alien Tech Used ----------------- None Achievements -------------- None Challenges ------------ None Game ------ Seed BarrageTrackerSystem Manual? 0 Play Time 02:45:55 Cumulative 123.1 hours Start 2024.02.12 @ 17:36:27 End 2024.02.12 @ 21:47:40 Sessions 1 Manual Loads 0 Difficulty Rogue Special Mode None Game No. 67 Rogue 67 Adventurer 0 Explorer 0 Win Type - Total 0 Types 0/0/0/0/0/0/0/0/0 Lore% 58 Gallery% 60 Achievement% 51 Wizard Run 0 Options --------- ASCII 0 Keyboard 1 Movement Arrows Keybinds 0 Fullscreen 1 Font 12/Proggy Map View 83x54 Tactical HUD 1 Map Filters NONE Filters NONE Steam 0 RUN: 97ebd19b-ac07-4d44-8a8d-b1cb7cea1610